fUST/lending_fUST_20250206
["ID","MTS","AMOUNT","RATE_DAILY","PERIOD"]
[351895491,1738831833466,-500.0,0.00013698,2]
[351895492,1738831833477,-507.92366608,0.00013698,2]
[351895493,1738831833487,-509.83,0.00013698,2]
[351895494,1738831833497,-500.0,0.00013698,2]
[351895495,1738831833507,-500.0,0.00013698,2]
[351895496,1738831833516,-500.0,0.00013698,2]
[351895497,1738831833526,-500.0,0.00013698,2]
[351895498,1738831833536,-500.0,0.00013698,2]
[351895499,1738831833546,-500.0,0.00013698,2]
[351895500,1738831833556,-500.0,0.00013698,2]
[351895501,1738831833566,-500.0,0.00013698,2]
[351895502,1738831833576,-500.0,0.00013698,2]
[351895503,1738831833585,-500.0,0.00013698,2]
[351895504,1738831833594,-500.0,0.00013698,2]
[351895505,1738831833604,-500.0,0.00013698,2]
[351895506,1738831833613,-500.0,0.00013698,2]
[351895507,1738831833622,-525.10126798,0.00013698,2]
[351895508,1738831833631,-500.0,0.00013698,2]
[351895509,1738831833639,-500.0,0.00013698,2]
[351895510,1738831833649,-500.0,0.00013698,2]
[351895511,1738831833659,-500.0,0.00013698,2]
[351895512,1738831833669,-684.27,0.00013698,2]
[351895513,1738831833678,-500.0,0.00013698,2]
[351895514,1738831833688,-500.0,0.00013698,2]
[351895515,1738831833697,-116.300971,0.00013698,2]
[351895516,1738831833714,-383.699029,0.00013698,2]
[351895517,1738831833724,-500.0,0.00013698,2]
[351895518,1738831833734,-500.0,0.00013698,2]
[351895519,1738831833743,-536.77785448,0.00013698,2]
[351895520,1738831833769,-576.25214552,0.00013698,2]
[351895521,1738831833779,-500.0,0.00013698,2]
[351895522,1738831833789,-1593.44493315,0.00013698,2]
[351895523,1738831833800,-7833.65751008,0.00013698,2]
[351895524,1738831833813,-2455.29232577,0.00013698,2]
[351895568,1738831838114,-500.0,0.00013698,2]
[351895570,1738831838124,-500.0,0.00013698,2]
[351895572,1738831838134,-500.0,0.00013698,2]
[351895574,1738831838144,-500.0,0.00013698,2]
[351895576,1738831838155,-1767.07,0.00013698,2]
[351895578,1738831838168,-500.0,0.00013698,2]
[351895581,1738831838178,-500.0,0.00013698,2]
[351895582,1738831838188,-1100.91,0.00013698,2]
[351895585,1738831838198,-500.0,0.00013698,2]
[351895587,1738831838209,-505.38546908,0.00013698,2]
[351895589,1738831838219,-646.29,0.00013698,2]
[351895591,1738831838228,-503.24834067,0.00013698,2]
[351895592,1738831838239,-500.0,0.00013698,2]
[351895594,1738831838250,-1104.32,0.00013698,2]
[351895597,1738831838260,-641.61240064,0.00013698,2]
[351895599,1738831838270,-1568.08,0.00013698,2]
[351895601,1738831838279,-500.0,0.00013698,2]
[351895603,1738831838289,-186.48804255,0.00013698,2]
[351895605,1738831838299,-298.25359222,0.00013698,2]
[351895607,1738831838308,-500.0,0.00013698,2]
[351895609,1738831838317,-501.89589802,0.00013698,2]
[351895611,1738831838327,-500.0,0.00013698,2]
[351895613,1738831838337,-500.0,0.00013698,2]
[351895615,1738831838347,-110.7364462,0.00013698,2]
[351895617,1738831838360,-390.82796452,0.00013698,2]
[351895619,1738831838369,-500.0,0.00013698,2]
[351895621,1738831838379,-500.0,0.00013698,2]
[351895623,1738831838389,-527.38223469,0.00013698,2]
[351895625,1738831838398,-3532.37,0.00013698,2]
[351895627,1738831838408,-500.0,0.00013698,2]
[351895629,1738831838418,-1419.32,0.00013698,2]
[351895631,1738831838427,-500.0,0.00013698,2]
[351895633,1738831838437,-500.0,0.00013698,2]
[351895635,1738831838447,-500.0,0.00013698,2]
[351895637,1738831838457,-552.98162735,0.00013698,2]
[351895639,1738831838467,-500.0,0.00013698,2]
[351895641,1738831838477,-500.0,0.00013698,2]
[351895643,1738831838486,-500.0,0.00013698,2]
[351895645,1738831838495,-500.0,0.00013698,2]
[351895647,1738831838505,-500.0,0.00013698,2]
[351895649,1738831838514,-500.0,0.00013698,2]
[351895651,1738831838523,-500.0,0.00013698,2]
[351895653,1738831838533,-500.0,0.00013698,2]
[351895655,1738831838543,-500.0,0.00013698,2]
[351895657,1738831838552,-500.0,0.00013698,2]
[351895659,1738831838562,-500.0,0.00013698,2]
[351895661,1738831838571,-1732.0,0.00013698,2]
[351895663,1738831838582,-500.0,0.00013698,2]
[351895665,1738831838591,-340.22,0.00013698,2]
[351895667,1738831838601,-500.0,0.00013698,2]
[351895669,1738831838611,-500.0,0.00013698,2]
[351895671,1738831838620,-635.36710171,0.00013698,2]
[351895674,1738831838633,-2347.49820123,0.00013698,2]
[351895676,1738831838647,-1587.99469706,0.00013698,2]
[351895678,1738831838657,-500.0,0.00013698,2]
[351895680,1738831838667,-786.84,0.00013698,2]
[351895682,1738831838677,-1690.01,0.00013698,2]
[351895684,1738831838686,-500.0,0.00013698,2]
[351895686,1738831838696,-688.56,0.00013698,2]
[351895688,1738831838705,-500.0,0.00013698,2]
[351895690,1738831838715,-500.0,0.00013698,2]
[351895692,1738831838724,-611.71,0.00013698,2]
[351895694,1738831838734,-500.0,0.00013698,2]
[351895696,1738831838743,-500.0,0.00013698,2]
[351895698,1738831838753,-500.0,0.00013698,2]
[351895700,1738831838762,-500.0,0.00013698,2]
[351895702,1738831838771,-500.0,0.00013698,2]
[351895704,1738831838780,-500.0,0.00013698,2]
[351895706,1738831838789,-500.0,0.00013698,2]
[351895708,1738831838799,-500.0,0.00013698,2]
[351895710,1738831838808,-500.0,0.00013698,2]
[351895712,1738831838817,-500.0,0.00013698,2]
[351895714,1738831838827,-568.21,0.00013698,2]
[351895716,1738831838837,-500.0,0.00013698,2]
[351895718,1738831838847,-1303.66,0.00013698,2]
[351895720,1738831838857,-500.0,0.00013698,2]
[351895722,1738831838866,-500.0,0.00013698,2]
[351895724,1738831838876,-500.0,0.00013698,2]
[351895726,1738831838885,-500.0,0.00013698,2]
[351895728,1738831838895,-500.0,0.00013698,2]
[351895730,1738831838904,-1140.10897296,0.00013698,2]
[351895733,1738831838922,-672.15102704,0.00013698,2]
[351895735,1738831838931,-500.0,0.00013698,2]
[351895737,1738831838940,-599.61,0.00013698,2]
[351895739,1738831838949,-500.0,0.00013698,2]
[351895741,1738831838958,-500.0,0.00013698,2]
[351895743,1738831838967,-617.60781706,0.00013698,2]
[351895745,1738831838977,-579.42,0.00013698,2]
[351895747,1738831838987,-500.0,0.00013698,2]
[351895749,1738831838996,-500.0,0.00013698,2]
[351895751,1738831839005,-500.0,0.00013698,2]
[351895753,1738831839014,-500.0,0.00013698,2]
[351895755,1738831839023,-500.0,0.00013698,2]
[351895757,1738831839033,-500.0,0.00013698,2]
[351895759,1738831839043,-3360.55,0.00013698,2]
[351895761,1738831839053,-500.0,0.00013698,2]
[351895763,1738831839062,-200.2267951,0.00013698,2]
[351895765,1738831839071,-2295.17,0.00013698,2]
[351895767,1738831839079,-500.0,0.00013698,2]
[351895769,1738831839088,-620.45,0.00013698,2]
[351895771,1738831839097,-500.0,0.00013698,2]
[351895773,1738831839106,-500.0,0.00013698,2]
[351895775,1738831839116,-11293.93,0.00013698,2]
[351895777,1738831839125,-500.0,0.00013698,2]
[351895779,1738831839134,-500.0,0.00013698,2]
[351895781,1738831839143,-1452.37,0.00013698,2]
[351895783,1738831839153,-1378.43,0.00013698,2]
[351895785,1738831839166,-500.0,0.00013698,2]
[351895787,1738831839175,-500.0,0.00013698,2]
[351895789,1738831839184,-579.36,0.00013698,2]
[351895791,1738831839193,-1012.14,0.00013698,2]
[351895793,1738831839203,-500.0,0.00013698,2]
[351895795,1738831839213,-926.12,0.00013698,2]
[351895797,1738831839223,-1239.45,0.00013698,2]
[351895799,1738831839234,-8141.8,0.00013698,2]
[351895801,1738831839243,-500.0,0.00013698,2]
[351895803,1738831839253,-621.45,0.00013698,2]
[351895805,1738831839263,-500.0,0.00013698,2]
[351895807,1738831839273,-500.0,0.00013698,2]
[351895809,1738831839283,-500.0,0.00013698,2]
[351895811,1738831839293,-500.0,0.00013698,2]
[351895813,1738831839302,-500.0,0.00013698,2]
[351895815,1738831839311,-500.0,0.00013698,2]
[351895817,1738831839321,-2664.82,0.00013698,2]
[351895819,1738831839331,-500.0,0.00013698,2]
[351895821,1738831839340,-500.0,0.00013698,2]
[351895823,1738831839350,-822.74,0.00013698,2]
[351895825,1738831839369,-500.0,0.00013698,2]
[351895828,1738831839379,-2583.68,0.00013698,2]
[351895830,1738831839389,-500.0,0.00013698,2]
[351895831,1738831839398,-1161.54,0.00013698,2]
[351895833,1738831839407,-2726.37,0.00013698,2]
[351895835,1738831839417,-1420.21,0.00013698,2]
[351895837,1738831839427,-2826.8,0.00013698,2]
[351895839,1738831839436,-546.39,0.00013698,2]
[351895841,1738831839445,-500.0,0.00013698,2]
[351895843,1738831839455,-500.0,0.00013698,2]
[351895845,1738831839465,-500.0,0.00013698,2]
[351895847,1738831839474,-1104.47,0.00013698,2]
[351895849,1738831839486,-500.0,0.00013698,2]
[351895851,1738831839495,-6528.31,0.00013698,2]
[351895853,1738831839504,-643.63,0.00013698,2]
[351895855,1738831839514,-500.0,0.00013698,2]
[351895857,1738831839523,-500.0,0.00013698,2]
[351895859,1738831839534,-500.0,0.00013698,2]
[351895861,1738831839544,-626.7905281,0.00013698,2]
[351895863,1738831839555,-203.52195275,0.00013698,2]
[351895865,1738831839565,-500.0,0.00013698,2]
[351895867,1738831839574,-500.0,0.00013698,2]
[351895869,1738831839584,-500.0,0.00013698,2]
[351895871,1738831839594,-973.28,0.00013698,2]
[351895873,1738831839604,-500.0,0.00013698,2]
[351895875,1738831839613,-500.0,0.00013698,2]
[351895877,1738831839623,-500.0,0.00013698,2]
[351895879,1738831839632,-506.29454237,0.00013698,2]
[351895881,1738831839642,-500.0,0.00013698,2]
[351895883,1738831839651,-500.0,0.00013698,2]
[351895885,1738831839661,-500.0,0.00013698,2]
[351895887,1738831839671,-9704.66507575,0.00013698,2]
[351895890,1738831839683,-4571.11492425,0.00013698,2]
[351895891,1738831839692,-392.939008,0.00013698,2]
[351895894,1738831839702,-500.0,0.00013698,2]
[351895896,1738831839712,-501.34,0.00013698,2]
[351895898,1738831839722,-1396.28,0.00013698,2]
[351895900,1738831839733,-500.0,0.00013698,2]
[351895902,1738831839743,-1126.36,0.00013698,2]
[351895904,1738831839752,-961.78727167,0.00013698,2]
[351895914,1738831839841,-2023.58272833,0.00013698,2]
[351895916,1738831839851,-18731.42473552,0.00013698,2]
[351895918,1738831839863,-3412.42525625,0.00013698,2]
[351895920,1738831839874,-477.13672179,0.00013698,2]
[351895923,1738831839894,-10460.08328644,0.00013698,2]
[351895925,1738831839904,-173.156999,0.00013699,2]
[351895927,1738831839913,-500.0,0.00013699,2]
[351895929,1738831839922,-500.0,0.00013699,2]
[351895931,1738831839932,-500.0,0.00013699,2]
[351895933,1738831839941,-500.0,0.00013699,2]
[351895935,1738831839950,-500.0,0.00013699,2]
[351895937,1738831839960,-600.99780006,0.00013699,2]
[351895939,1738831839970,-500.0,0.00013699,2]
[351895941,1738831839980,-500.0,0.00013699,2]
[351895943,1738831839991,-500.0,0.00013699,2]
[351895945,1738831840001,-500.0,0.00013699,2]
[351895947,1738831840010,-500.0,0.00013699,2]
[351895949,1738831840020,-500.0,0.00013699,2]
[351895951,1738831840030,-500.0,0.00013699,2]
[351895953,1738831840039,-500.0,0.00013699,2]
[351895955,1738831840049,-500.0,0.00013699,2]
[351895957,1738831840059,-182.17024407,0.00013699,2]
[351895959,1738831840069,-500.0,0.00013699,2]
[351895961,1738831840079,-500.0,0.00013699,2]
[351895963,1738831840088,-500.0,0.00013699,2]
[351895965,1738831840098,-500.0,0.00013699,2]
[351895967,1738831840108,-500.0,0.00013699,2]
[351895969,1738831840118,-500.0,0.00013699,2]
[351895971,1738831840129,-500.0,0.00013699,2]
[351895973,1738831840138,-500.0,0.00013699,2]
[351895975,1738831840148,-500.0,0.00013699,2]
[351895977,1738831840158,-500.0,0.00013699,2]
[351895979,1738831840171,-500.0,0.00013699,2]
[351895981,1738831840181,-500.0,0.00013699,2]
[351895983,1738831840191,-500.0,0.00013699,2]
[351895985,1738831840203,-500.0,0.00013699,2]
[351895987,1738831840212,-500.0,0.00013699,2]
[351895989,1738831840222,-631.08024216,0.00013699,2]
[351895991,1738831840236,-500.0,0.00013699,2]
[351895994,1738831840249,-500.0,0.00013699,2]
[351895996,1738831840260,-500.0,0.00013699,2]
[351895998,1738831840270,-500.0,0.00013699,2]
[351896000,1738831840281,-500.0,0.00013699,2]
[351896002,1738831840291,-394.5943549,0.00013699,2]
[351896004,1738831840301,-500.0,0.00013699,2]
[351896005,1738831840311,-500.0,0.00013699,2]
[351896007,1738831840320,-500.0,0.00013699,2]
[351896009,1738831840330,-394.5943549,0.00013699,2]
[351896011,1738831840341,-500.0,0.00013699,2]
[351896013,1738831840350,-500.0,0.00013699,2]
[351896015,1738831840361,-500.0,0.00013699,2]
[351896018,1738831840371,-500.0,0.00013699,2]
[351896020,1738831840382,-494.07773016,0.00013699,2]
[351896022,1738831840393,-500.0,0.00013699,2]
[351896023,1738831840402,-500.0,0.00013699,2]
[351896026,1738831840412,-500.0,0.00013699,2]
[351896027,1738831840422,-500.0,0.00013699,2]
[351896030,1738831840432,-397.93350105,0.00013699,2]
[351896032,1738831840442,-500.0,0.00013699,2]
[351896034,1738831840452,-500.0,0.00013699,2]
[351896036,1738831840462,-500.0,0.00013699,2]
[351896038,1738831840472,-500.0,0.00013699,2]
[351896040,1738831840484,-397.93350105,0.00013699,2]
[351896042,1738831840494,-500.0,0.00013699,2]
[351896043,1738831840503,-500.0,0.00013699,2]
[351896045,1738831840512,-500.0,0.00013699,2]
[351896047,1738831840523,-500.0,0.00013699,2]
[351896050,1738831840533,-397.93350105,0.00013699,2]
[351896052,1738831840543,-500.0,0.00013699,2]
[351896053,1738831840552,-166.09263918,0.00013699,2]
[351896056,1738831840563,-500.0,0.00013699,2]
[351896058,1738831840574,-166.09263918,0.00013699,2]
[351896060,1738831840584,-500.0,0.00013699,2]
[351896062,1738831840594,-166.09263918,0.00013699,2]
[351896064,1738831840604,-500.0,0.00013699,2]
[351896066,1738831840614,-166.09263918,0.00013699,2]
[351896068,1738831840624,-500.0,0.00013699,2]
[351896070,1738831840635,-166.09263918,0.00013699,2]
[351896072,1738831840645,-500.0,0.00013699,2]
[351896074,1738831840656,-166.09263918,0.00013699,2]
[351896076,1738831840665,-500.0,0.00013699,2]
[351896078,1738831840675,-166.09263918,0.00013699,2]
[351896080,1738831840684,-500.0,0.00013699,2]
[351896082,1738831840693,-500.0,0.00013699,2]
[351896084,1738831840703,-332.18527836,0.00013699,2]
[351896086,1738831840713,-500.0,0.00013699,2]
[351896088,1738831840722,-500.0,0.00013699,2]
[351896090,1738831840734,-332.18527836,0.00013699,2]
[351896092,1738831840744,-500.0,0.00013699,2]
[351896093,1738831840754,-500.0,0.00013699,2]
[351896094,1738831840763,-500.0,0.00013699,2]
[351896095,1738831840772,-332.18527836,0.00013699,2]
[351896096,1738831840782,-500.0,0.00013699,2]
[351896097,1738831840792,-166.09263918,0.00013699,2]
[351896098,1738831840801,-500.0,0.00013699,2]
[351896099,1738831840810,-166.09263918,0.00013699,2]
[351896100,1738831840819,-500.0,0.00013699,2]
[351896101,1738831840828,-166.09263918,0.00013699,2]
[351896102,1738831840838,-666.09263918,0.00013699,2]
[351896103,1738831840847,-666.09263918,0.00013699,2]
[351896104,1738831840856,-500.0,0.00013699,2]
[351896105,1738831840865,-506.12498987,0.00013773,2]
[351896106,1738831840875,-507.99791894,0.00013773,2]
[351896107,1738831840884,-500.0,0.00013773,2]
[351896108,1738831840893,-500.0,0.00013773,2]
[351896109,1738831840902,-500.0,0.00013773,2]
[351896111,1738831840911,-500.0,0.00013773,2]
[351896112,1738831840921,-500.0,0.00013773,2]
[351896114,1738831840931,-500.0,0.00013799,2]
[351896116,1738831840940,-199.21922272,0.00013799,2]
[351896118,1738831840949,-567.92864353,0.00013799,2]
[351896120,1738831840958,-500.0,0.00013799,2]
[351896122,1738831840968,-429209.98154976,0.000138,2]
[351896124,1738831840977,-500.0,0.00013835,2]
[351896126,1738831840986,-500.0,0.00013835,2]
[351896128,1738831840995,-500.0,0.00013835,2]
[351896130,1738831841005,-500.0,0.00013835,2]
[351896132,1738831841015,-500.0,0.00013835,2]
[351896134,1738831841024,-500.0,0.00013835,2]
[351896136,1738831841034,-500.0,0.00013835,2]
[351896138,1738831841044,-1066.02,0.00013835,2]
[351896140,1738831841053,-1044.03,0.00013835,2]
[351896142,1738831841063,-500.0,0.00013835,2]
[351896144,1738831841075,-500.0,0.00013835,2]
[351896146,1738831841085,-500.0,0.00013835,2]
[351896148,1738831841094,-500.0,0.00013835,2]
[351896150,1738831841104,-560.09,0.00013835,2]
[351896152,1738831841115,-500.0,0.00013835,2]
[351896154,1738831841124,-500.0,0.00013835,2]
[351896156,1738831841134,-500.0,0.00013835,2]
[351896158,1738831841143,-500.0,0.00013835,2]
[351896160,1738831841152,-500.0,0.00013835,2]
[351896162,1738831841164,-1146.05,0.00013835,2]
[351896164,1738831841174,-500.0,0.00013835,2]
[351896166,1738831841183,-500.0,0.00013835,2]
[351896168,1738831841193,-500.0,0.00013835,2]
[351896170,1738831841202,-500.0,0.00013835,2]
[351896172,1738831841213,-500.0,0.00013835,2]
[351896174,1738831841223,-569.58,0.00013835,2]
[351896176,1738831841233,-728.1,0.00013835,2]
[351896178,1738831841243,-1215.7,0.00013835,2]
[351896180,1738831841252,-586.05688182,0.00013835,2]
[351896182,1738831841262,-500.0,0.00013835,2]
[351896184,1738831841272,-316.13356998,0.00013835,2]
[351896186,1738831841281,-500.0,0.00013835,2]
[351896188,1738831841290,-530.43,0.00013835,2]
[351896190,1738831841300,-882.07,0.00013835,2]
[351896192,1738831841309,-509.83,0.00013835,2]
[351896194,1738831841319,-500.0,0.00013835,2]
[351896196,1738831841329,-500.0,0.00013835,2]
[351896198,1738831841338,-229.5921136,0.00013835,2]
[351896200,1738831841348,-500.0,0.00013835,2]
[351896202,1738831841358,-500.0,0.00013835,2]
[351896204,1738831841368,-500.0,0.00013835,2]
[351896206,1738831841377,-500.0,0.00013835,2]
[351896209,1738831841399,-500.0,0.00013835,2]
[351896211,1738831841408,-640.44296156,0.00013835,2]
[351896213,1738831841417,-500.0,0.00013835,2]
[351896215,1738831841426,-500.0,0.00013835,2]
[351896217,1738831841436,-500.0,0.00013835,2]
[351896219,1738831841446,-500.0,0.00013835,2]
[351896220,1738831841456,-500.0,0.00013835,2]
[351896222,1738831841467,-500.0,0.00013835,2]
[351896225,1738831841478,-684.27,0.00013835,2]
[351896226,1738831841487,-500.0,0.00013835,2]
[351896229,1738831841497,-500.0,0.00013835,2]
[351896231,1738831841507,-500.0,0.00013835,2]
[351896233,1738831841516,-1113.03,0.00013835,2]
[351896235,1738831841526,-500.0,0.00013835,2]
[351896237,1738831841535,-500.0,0.00013835,2]
[351896239,1738831841544,-1767.07,0.00013835,2]
[351896240,1738831841553,-500.0,0.00013835,2]
[351896242,1738831841563,-1100.91,0.00013835,2]
[351896244,1738831841573,-646.29,0.00013835,2]
[351896246,1738831841583,-1104.32,0.00013835,2]
[351896248,1738831841592,-1568.08,0.00013835,2]
[351896250,1738831841601,-500.0,0.00013835,2]
[351896253,1738831841611,-500.0,0.00013835,2]
[351896254,1738831841621,-500.0,0.00013835,2]
[351896256,1738831841630,-500.0,0.00013835,2]
[351896258,1738831841640,-500.0,0.00013835,2]
[351896260,1738831841649,-3532.37,0.00013835,2]
[351896262,1738831841659,-500.0,0.00013835,2]
[351896264,1738831841669,-1419.32,0.00013835,2]
[351896266,1738831841678,-500.0,0.00013835,2]
[351896268,1738831841688,-500.0,0.00013835,2]
[351896272,1738831841708,-500.0,0.00013835,2]
[351896274,1738831841719,-500.0,0.00013835,2]
[351896276,1738831841729,-1732.0,0.00013835,2]
[351896278,1738831841738,-500.0,0.00013835,2]
[351896280,1738831841748,-500.0,0.00013835,2]
[351896282,1738831841757,-4570.86,0.00013835,2]
[351896284,1738831841767,-786.84,0.00013835,2]
[351896286,1738831841777,-1690.01,0.00013835,2]
[351896288,1738831841786,-688.56,0.00013835,2]
[351896290,1738831841796,-500.0,0.00013835,2]
[351896292,1738831841805,-611.71,0.00013835,2]
[351896294,1738831841815,-500.0,0.00013835,2]
[351896296,1738831841825,-1303.66,0.00013835,2]
[351896298,1738831841835,-500.0,0.00013835,2]
[351896300,1738831841844,-500.0,0.00013835,2]
[351896302,1738831841854,-500.0,0.00013835,2]
[351896304,1738831841865,-1812.26,0.00013835,2]
[351896306,1738831841875,-500.0,0.00013835,2]
[351896308,1738831841892,-599.61,0.00013835,2]
[351896310,1738831841902,-579.42,0.00013835,2]
[351896312,1738831841912,-500.0,0.00013835,2]
[351896314,1738831841921,-500.0,0.00013835,2]
[351896316,1738831841931,-500.0,0.00013835,2]
[351896318,1738831841942,-3360.55,0.00013835,2]
[351896320,1738831841952,-2295.17,0.00013835,2]
[351896322,1738831841963,-620.45,0.00013835,2]
[351896324,1738831841973,-500.0,0.00013835,2]
[351896326,1738831841987,-500.0,0.00013835,2]
[351896329,1738831841997,-11293.93,0.00013835,2]
[351896330,1738831842008,-1452.37,0.00013835,2]
[351896333,1738831842023,-1378.43,0.00013835,2]
[351896335,1738831842034,-264.36667853,0.00013835,2]
[351896337,1738831842044,-579.36,0.00013835,2]
[351896339,1738831842054,-1012.14,0.00013835,2]
[351896341,1738831842064,-500.0,0.00013835,2]
[351896343,1738831842074,-926.12,0.00013835,2]
[351896345,1738831842084,-1239.45,0.00013835,2]
[351896347,1738831842094,-8141.8,0.00013835,2]
[351896349,1738831842104,-500.0,0.00013835,2]
[351896351,1738831842114,-621.45,0.00013835,2]
[351896353,1738831842124,-500.0,0.00013835,2]
[351896376,1738831842330,-500.0,0.00013835,2]
[351896378,1738831842340,-500.0,0.00013835,2]
[351896380,1738831842350,-500.0,0.00013835,2]
[351896382,1738831842360,-500.0,0.00013835,2]
[351896384,1738831842370,-2664.82,0.00013835,2]
[351896386,1738831842380,-500.0,0.00013835,2]
[351896388,1738831842390,-500.0,0.00013835,2]
[351896390,1738831842400,-822.74,0.00013835,2]
[351896392,1738831842410,-500.0,0.00013835,2]
[351896394,1738831842419,-2583.68,0.00013835,2]
[351896399,1738831842452,-500.0,0.00013835,2]
[351896401,1738831842462,-1161.54,0.00013835,2]
[351896403,1738831842472,-2726.37,0.00013835,2]
[351896405,1738831842484,-1420.21,0.00013835,2]
[351896407,1738831842493,-2826.8,0.00013835,2]
[351896409,1738831842503,-546.39,0.00013835,2]
[351896411,1738831842513,-500.0,0.00013835,2]
[351896413,1738831842523,-500.0,0.00013835,2]
[351896416,1738831842536,-1104.47,0.00013835,2]
[351896418,1738831842546,-6528.31,0.00013835,2]
[351896420,1738831842556,-643.63,0.00013835,2]
[351896422,1738831842566,-500.0,0.00013835,2]
[351896424,1738831842576,-500.0,0.00013835,2]
[351896426,1738831842587,-500.0,0.00013835,2]
[351896428,1738831842597,-973.28,0.00013835,2]
[351896430,1738831842607,-500.0,0.00013835,2]
[351896432,1738831842617,-500.0,0.00013835,2]
[351896434,1738831842627,-500.0,0.00013835,2]
[351896436,1738831842637,-500.0,0.00013835,2]
[351896438,1738831842647,-500.0,0.00013835,2]
[351896440,1738831842657,-14275.78,0.00013835,2]
[351896442,1738831842668,-501.34,0.00013835,2]
[351896445,1738831842679,-1396.28,0.00013835,2]
[351896446,1738831842688,-500.0,0.00013835,2]
[351896449,1738831842699,-1126.36,0.00013835,2]
[351896450,1738831842709,-2985.37,0.00013835,2]
[351896453,1738831842719,-33081.07,0.00013835,2]
[351896455,1738831842729,-1452.29745919,0.00013841,2]
[351896457,1738831842739,-157.39731702,0.00013872,2]
[351896459,1738831842749,-500.0,0.00013972,2]
[351896461,1738831842759,-500.0,0.00013972,2]
[351896463,1738831842768,-500.0,0.00013972,2]
[351896465,1738831842779,-500.0,0.00013972,2]
[351896467,1738831842788,-500.0,0.00013972,2]
[351896469,1738831842799,-500.0,0.00013972,2]
[351896471,1738831842809,-500.0,0.00013972,2]
[351896473,1738831842819,-1066.02,0.00013972,2]
[351896475,1738831842829,-1044.03,0.00013972,2]
[351896477,1738831842838,-186.86,0.00013972,2]
[351896479,1738831842848,-500.0,0.00013972,2]
[351896481,1738831842858,-465.47798974,0.00013972,2]
[351896483,1738831842868,-500.0,0.00013972,2]
[351896486,1738831842878,-560.09,0.00013972,2]
[351896488,1738831842888,-500.0,0.00013972,2]
[351896490,1738831842898,-521.25221922,0.00013972,2]
[351896492,1738831842908,-500.0,0.00013972,2]
[351896494,1738831842918,-500.0,0.00013972,2]
[351896496,1738831842927,-1146.05,0.00013972,2]
[351896498,1738831842937,-500.0,0.00013972,2]
[351896500,1738831842947,-500.0,0.00013972,2]
[351896502,1738831842957,-569.58,0.00013972,2]
[351896504,1738831842967,-387.08854938,0.00013972,2]
[351896506,1738831842977,-728.1,0.00013972,2]
[351896508,1738831842987,-1215.7,0.00013972,2]
[351896510,1738831842997,-500.0,0.00013972,2]
[351896512,1738831843007,-500.0,0.00013972,2]
[351896514,1738831843016,-530.43,0.00013972,2]
[351896516,1738831843026,-882.07,0.00013972,2]
[351896518,1738831843036,-509.83,0.00013972,2]
[351896520,1738831843046,-500.0,0.00013972,2]
[351896522,1738831843056,-500.0,0.00013972,2]
[351896524,1738831843066,-500.0,0.00013972,2]